[Event "Polish Youth B18 Championship 2023"]
[Site "Jastrzebia Gora"]
[Date "2023.03.16"]
[Round "6.8"]
[White "Krasniewski, Szymon"]
[Black "Kacprzak, Karol"]
[Result "0-1"]
[ECO "A04"]
[WhiteElo "1771"]
[BlackElo "2221"]
[Annotator "TA"]
[PlyCount "172"]
[EventDate "2023.03.11"]
[EventType "swiss"]
[EventCountry "POL"]
[SourceTitle "playchess.com"]
[Source "ChessBase"]
[SourceQuality "1"]
[TimeControl "40/5400+30:1800+30"]

{[%evp 10,172,-22,-18,-19,-42,-14,-48,-37,-49,-45,-62,-46,-94,-90,-134,-123,-137,-134,-172,-125,-115,-117,-147,-109,-150,-128,-133,-95,-180,-183,-284,-224,-225,-155,-224,-225,-378,-235,-530,-543,-519,-504,-539,-550,-572,-508,-502,-489,-486,-441,-446,-247,-329,-140,-143,-145,-147,-145,-141,-145,-140,-146,-146,-137,-226,-226,-226,-226,-226,-226,-224,-212,-226,-226,-254,-254,-399,-391,-391,-391,-384,-269,-362,-222,-12829,-257,-260,-254,-300,-270,-245,-223,-1595,-1565,-12797,-12797,-12794,-973,-12799,-12135,-12804,-12697,-12826,-12834,-12632,-12843,-579,-254,-29946,-29943,-29946,-211,-206,-206,-29942,-29950,-29951,-29952,-29961,-29962,-29961,-29963,-29962,-29964,-29970,-29971,-29971,-29972,-29972,-29973,-29973,-29974,-29974,-29965,-29974,-29969,-29969,-29970,-29975,-29964,-29965,-29967,-29965,-29967,-29977,-29968,-29977,-29971,-29971,-29972,-29976,-29962,-29972,-29966,-29976,-29955,-29975,-29976,-29983,-29984,-29984,-29984,-29984,-29985]} 1. Nf3 {[%emt 0:00:03]} c5 {[%emt 0:01:49]} 2. g3 {[%emt 0:00:07]} Nc6 {[%emt 0:00:58]} 3. Bg2 {[%emt 0:00:05]} d5 {[%emt 0:02:31]} 4. O-O {[%emt 0:00:06]} e5 {[%emt 0:00:42]} 5. d3 {[%emt 0:00:09]} Be7 {[%emt 0:00:53]} 6. Nbd2 {[%emt 0:00:06]} Be6 {[%emt 0:00:38] A08: King's Indian Attack.} 7. e4 {[%emt 0:00:30]} d4 {[%emt 0:00:05]} 8. Ne1 {[%emt 0:01:42]} g5 {[%emt 0:05:48] Black is slightly better.} 9. f4 {[%emt 0:06:23]} gxf4 {[%emt 0:02:07]} 10. gxf4 {[%emt 0:00:01]} exf4 {[%emt 0:00:23]} 11. Ndf3 {[%emt 0:00:15]} (11. Nc4 $15) 11... Qc7 {[%emt 0:05:34]} 12. e5 {[%emt 0:04:09]} Nh6 {[%emt 0:08:09]} (12... Nxe5 13. Nxe5 Qxe5 14. Bxf4 $16) 13. Bxf4 {[%emt 0:00:32]} Nf5 {[%emt 0:00:31]} 14. Qe2 {[%emt 0:06:59]} Rg8 {[%emt 0:01:04]} (14... O-O-O $19 15. Bh3 Rdg8+ 16. Kh1 Qd7) 15. Kh1 $17 {[%emt 0:01:30]} O-O-O {[%emt 0:03:28] Black is much more active.} 16. c4 {[%emt 0:03:18] [#]} Rg6 $146 {[%emt 0:13:44]} ({Predecessor:} 16... Rg4 17. Nd2 Ne3 18. Bxe3 dxe3 19. Qxe3 Bg5 20. Qf2 Bxd2 21. Qxd2 Nxe5 22. Qe2 Rdg8 {0-1 Movsesian,M (2200)-Nun,J (2340) CZE-chT2a 0001 2000 (3)}) 17. Nc2 {[%emt 0:04:27]} Rdg8 {[%emt 0:01:22]} 18. Rg1 {[%emt 0:00:21]} Qd7 {[%emt 0:02:59]} 19. b4 {[%emt 0:04:46]} cxb4 $19 {[%emt 0:03:14]} ({Inferior is} 19... Nxb4 20. Nxb4 cxb4 21. Nd2 $15) 20. a3 {[%emt 0:01:06]} (20. Nd2 $142) 20... bxa3 {[%emt 0:06:02]} 21. Nxa3 {[%emt 0:01:11]} Bf8 {[%emt 0:02:11]} 22. Nb5 {[%emt 0:06:11]} (22. Nc2 $17 {was worth a try.}) 22... a6 {[%emt 0:06:20]} 23. Nd2 $2 {[%emt 0:07:10]} (23. Nd6+ {keeps fighting.} Nxd6 24. exd6 Bxd6 25. Bxd6 Qxd6 26. Rab1) 23... Bh6 {[%emt 0:06:43]} 24. Qf2 {[%emt 0:12:30]} (24. Nd6+ Nxd6 25. Bxh6 Rxh6 26. exd6) 24... Bxf4 {[%emt 0:01:19]} 25. Qxf4 {[%emt 0:00:11][%cal Od2e4]} Rg4 {[%emt 0:00:59]} 26. Qf2 {[%emt 0:01:31][%cal Od2e4]} Nxe5 {[%emt 0:05:41]} 27. Ne4 {[%emt 0:02:38]} Qe7 {[%emt 0:03:10] Repels Nf6} 28. Nxd4 {[%emt 0:06:54]} Nxd3 {[%emt 0:04:27]} 29. Qd2 {[%emt 0:03:17]} Nxd4 {[%emt 0:01:14]} 30. Qxd3 {[%emt 0:00:07]} Rd8 {[%emt 0:01:27]} (30... Rh4 $142 31. Nf2 (31. Qxd4 $2 {gets mated.} Rxh2+ {[%mdl 64] Decoy, Clearance} 32. Kxh2 Qh4+) 31... Qc7) 31. c5 {[%emt 0:03:25]} Bf5 {[%emt 0:04:06]} (31... Nb3 $19 32. Nd6+ {[%mdl 64] Discovered Attack} Kb8) 32. Nd6+ $17 {[%emt 0:05:15] [#]} Qxd6 $3 {[%emt 0:00:06][%mdl 512]} 33. Qxf5+ {[%emt 0:00:47]} Nxf5 {[%emt 0:00:09]} 34. cxd6 {[%emt 0:00:05][%cal Og2b7]} Kb8 {[%emt 0:00:13]} 35. Rgb1 {[%emt 0:00:34]} Nxd6 {[%emt 0:00:34] Hoping for ...Ka7.} 36. Rxa6 {[%emt 0:00:11]} Rd4 {[%emt 0:02:37]} 37. Rxd6 {[%emt 0:06:26]} (37. Ra5 $17 {was necessary.}) 37... R8xd6 $19 {[%emt 0:00:58]} 38. Rxb7+ $17 {[%emt 0:00:05][%mdl 4096] Endgame KRR-KRB} Kc8 {[%emt 0:00:05] ( -> ...Rd1+)} 39. Rxf7 {[%emt 0:00:05]} Rd1+ {[%emt 0:00:19]} 40. Bf1 {[%emt 0:00:00]} Rd7 {[%emt 0:00:00]} 41. Rf6 {[%emt 0:02:06]} Rg7 {[%emt 0:04:29]} 42. h3 {[%emt 0:02:40]} Rd2 {[%emt 0:02:28] Repels Rf2} 43. Rf5 {[%emt 0:00:51]} (43. Re6 $142) 43... Kd7 $19 {[%emt 0:00:43]} 44. Rf6 {[%emt 0:00:06]} Ke7 {[%emt 0:00:36]} 45. Rf4 {[%emt 0:00:11]} Rg6 {[%emt 0:02:47]} 46. Rf3 {[%emt 0:00:57]} Rdd6 {[%emt 0:01:18] ...Rgf6 would be deadly.} 47. Ra3 $2 {[%emt 0:00:48]} (47. Bd3 Rg7 48. Kh2) 47... Rgf6 $2 {[%emt 0:02:35]} (47... Rd1 48. Rf3 h5) 48. Ra1 {[%emt 0:01:24]} Rd2 {[%emt 0:01:00]} 49. Re1+ {[%emt 0:00:50]} Kf8 {[%emt 0:00:25]} 50. Ra1 {[%emt 0:00:19]} Rfd6 {[%emt 0:01:04] And now ...Rd1 would win.} 51. Ra3 $2 {[%emt 0:01:20]} (51. Ra8+ Kg7 52. Ra7+ Kh6 53. Rf7) 51... Rd1 {[%emt 0:01:38]} 52. Rf3+ {[%emt 0:00:12]} Kg7 {[%emt 0:00:05]} 53. Kh2 {[%emt 0:00:19]} Rf6 {[%emt 0:00:31]} (53... R1d2+ $142 54. Kg3 Rg6+ 55. Kf4 Rf6+ 56. Kg3 Rxf3+ 57. Kxf3 Kg6) 54. Rg3+ {[%emt 0:00:21]} Kh6 {[%emt 0:00:04]} 55. Bg2 {[%emt 0:00:23]} Rd2 {[%emt 0:00:48]} 56. h4 {[%emt 0:00:37]} Rg6 {[%emt 0:00:13]} 57. Kh3 {[%emt 0:00:15]} Rxg3+ {[%emt 0:00:45]} 58. Kxg3 {[%emt 0:00:06] KR-KB} Rd3+ {[%emt 0:00:36]} 59. Bf3 $2 {[%emt 0:00:05] [#]} (59. Kg4 $19) 59... Kg6 {[%emt 0:00:07]} 60. Kf4 {[%emt 0:00:09]} Kf6 $2 {[%emt 0:01:02]} (60... Rd4+ {mates} 61. Kg3 Kf5 62. Be2 h6 63. Bb5 Rg4+ 64. Kh3 Rg1 65. Kh2 Ra1 66. h5 Kg5 67. Kg2 Ra2+ 68. Kh3 Ra3+ 69. Kg2 Kxh5 70. Bd7 Rd3 71. Bf5 Rd2+ 72. Kh3 Kg5 73. Be6 Rd6 74. Bc8 Rd8 75. Be6 Rd3+ 76. Kh2 Kh4 77. Kg2 Rg3+ 78. Kf2 Rc3 79. Kg2 Kg5 80. Bd5 Kg4 81. Be6+ Kh4 82. Bf5 Rg3+ 83. Kf2 Ra3 84. Bd7 Kg5 85. Kg2 Rd3 86. Bh3 Kh4 87. Bc8 Rc3 88. Bd7 Rg3+ 89. Kf2 Rg7 90. Be6 Re7 91. Bc8 Rc7 92. Be6 Rc3 93. Bf5 Kg5 94. Bd7 Rc7 95. Be6 Kf4 96. Kg2 Rc6 97. Bd7 Rc3 98. Kh2 Rc7 99. Be6 Re7 100. Bc8 Re8 101. Bd7 Rd8 102. Be6 Rd2+ 103. Kh3 Rd3+ 104. Kh4 Rd1 105. Kh3 Rh1+ 106. Kg2 Re1 107. Bd5 Re5 108. Bc6 Re3 109. Kh2 Rd3 110. Bb7 Rc3 111. Bd5 Kf5 112. Kg2 Kg4 113. Be6+ Kg5 114. Bh3 Kf4 115. Be6 Rd3 116. Kh2 Rg3 117. Bh3 Rg7 118. Be6 Rg6 119. Bd7 Rg3) 61. Be4 {[%emt 0:02:17]} Rd7 {[%emt 0:00:06]} 62. Bf3 $2 {[%emt 0:00:07]} (62. h5 $19) 62... Rd4+ {[%emt 0:00:26] Black mates.} 63. Kg3 {[%emt 0:00:23]} Kf5 {[%emt 0:00:25]} 64. Bb7 {[%emt 0:00:25]} Rd3+ {[%emt 0:00:04]} 65. Bf3 {[%emt 0:00:11]} Rc3 {[%emt 0:00:05]} 66. Kg2 {[%emt 0:01:00]} Kf4 {[%emt 0:00:16]} 67. Be2 {[%emt 0:00:13]} Rc2 {[%emt 0:00:16]} 68. Kf2 {[%emt 0:00:06]} Rb2 {[%emt 0:02:04]} 69. h5 {[%emt 0:00:19]} h6 {[%emt 0:01:23]} 70. Kf1 {[%emt 0:00:29]} Ke3 {[%emt 0:00:49]} 71. Bc4 {[%emt 0:01:22]} Rc2 {[%emt 0:01:03]} 72. Bb5 {[%emt 0:00:35]} Kf3 {[%emt 0:00:14][%cal Rc2c1]} 73. Ke1 {[%emt 0:03:02]} Rc5 {[%emt 0:03:13][%csl LRb5,LRh5]} 74. Ba6 {[%emt 0:00:16]} Ke3 {[%emt 0:00:23][%cal Rc5c1]} ({Weaker is} 74... Rxh5 75. Be2+ Kg3 76. Bxh5 $11) 75. Kf1 {[%emt 0:00:08]} Rxh5 {[%emt 0:00:29]} 76. Kg2 {[%emt 0:00:13]} Kf4 {[%emt 0:00:12]} 77. Bb7 {[%emt 0:00:26]} Rb5 {[%emt 0:00:12]} 78. Ba8 {[%emt 0:00:10]} Kg4 {[%emt 0:00:43]} 79. Bf3+ {[%emt 0:00:17]} Kh4 {[%emt 0:00:06]} 80. Be4 {[%emt 0:00:56]} Rb4 {[%emt 0:00:36]} 81. Bc6 {[%emt 0:00:12]} Rb3 {[%emt 0:00:18]} 82. Bd5 {[%emt 0:00:23]} Rd3 {[%emt 0:00:18]} 83. Bc6 {[%emt 0:00:12]} Kg4 {[%emt 0:00:10]} 84. Bb7 {[%emt 0:00:38]} Rd2+ {[%emt 0:00:07]} 85. Kf1 {[%emt 0:00:08]} Kg3 {[%emt 0:00:07]} 86. Ke1 {[%emt 0:00:12]} Rb2 {[%emt 0:00:07] Weighted Error Value: White=0.87/Black=0.53} 0-1

[Event "Polish Youth B18 Championship 2023"]
[Site "Jastrzebia Gora"]
[Date "2023.03.16"]
[Round "6.9"]
[White "Grzesik, Gracjan"]
[Black "Madajczak, Piotr"]
[Result "1/2-1/2"]
[ECO "E06"]
[WhiteElo "2149"]
[BlackElo "1897"]
[Annotator "TA"]
[PlyCount "141"]
[EventDate "2023.03.11"]
[EventType "swiss"]
[EventCountry "POL"]
[SourceTitle "playchess.com"]
[Source "ChessBase"]
[SourceQuality "1"]
[TimeControl "40/5400+30:1800+30"]

{[%evp 18,141,37,32,116,101,137,123,183,167,179,182,266,281,286,248,253,228,275,249,253,242,232,215,197,194,207,214,277,156,143,147,398,142,152,125,109,108,138,135,229,219,349,343,324,324,343,158,138,0,320,0,153,162,157,146,153,151,148,76,149,130,131,150,143,150,185,168,168,141,261,148,258,237,554,317,605,584,603,598,577,566,540,366,488,111,111,111,110,110,110,93,104,5,8,8,80,80,116,30,55,0,3,0,0,0,0,0,0,0,-7,0,0,-8,-8,-22,-8,-64,-64,-63,-63,-67,-66,-64,-64,-57]} 1. d4 {[%emt 0:02:11]} d5 {[%emt 0:00:32]} 2. c4 {[%emt 0:01:00]} e6 {[%emt 0:00:06]} 3. Nf3 {[%emt 0:07:50]} Nf6 {[%emt 0:00:33]} 4. g3 {[%emt 0:01:40]} Be7 {[%emt 0:08:05]} 5. Bg2 {[%emt 0:00:18]} O-O {[%emt 0:00:06]} 6. O-O {[%emt 0:00:48]} c5 {[%emt 0:01:26]} 7. cxd5 {[%emt 0:06:48]} Nxd5 {[%emt 0:01:39]} 8. e4 {[%emt 0:03:04]} Nf6 {[%emt 0:03:57]} 9. Nc3 {[%emt 0:11:33]} cxd4 {[%emt 0:14:36]} 10. Nxd4 {[%emt 0:00:39]} Nbd7 {[%emt 0:08:14] E06: Closed Catalan: Early deviations.} (10... e5 $14 11. Nf5 Bxf5 12. exf5 Nc6) 11. Qe2 $1 $16 {[%emt 0:05:21]} Qc7 {[%emt 0:03:10]} 12. Be3 {[%emt 0:06:07] [#]} a6 $146 {[%emt 0:12:21]} (12... Qb8 $16 13. Rac1 Nb6) ({Predecessor:} 12... Rd8 13. Rac1 Qb8 14. Ncb5 Ne8 15. Bf4 e5 16. Nf5 Bf6 17. Be3 Nf8 18. Rfd1 Rxd1+ 19. Qxd1 {1-0 Pytel,K-Myagmarsuren,L Rubinstein Memorial-10 1972 (6)}) 13. Rac1 $18 {[%emt 0:01:42]} Qb8 {[%emt 0:00:10]} 14. f4 $1 {[%emt 0:11:33]} Rd8 {[%emt 0:07:53]} (14... e5 {was called for.}) 15. e5 {[%emt 0:02:23]} Ne8 {[%emt 0:00:10]} 16. Rfd1 {[%emt 0:02:50]} Nc7 {[%emt 0:09:37]} 17. a3 {[%emt 0:14:59]} Nf8 {[%emt 0:08:06]} 18. Nb3 {[%emt 0:03:04]} Rxd1+ {[%emt 0:02:32]} 19. Rxd1 {[%emt 0:00:47] Black is weak on the dark squares} a5 {[%emt 0:01:39]} 20. Bc5 {[%emt 0:04:47]} Bxc5+ {[%emt 0:01:02]} 21. Nxc5 {[%emt 0:00:02]} Qa7 {[%emt 0:02:44]} 22. Qf2 {[%emt 0:01:02]} Na6 {[%emt 0:00:35]} 23. N3e4 {[%emt 0:04:27]} ({White should play} 23. Nb3 $18) 23... Nxc5 $16 {[%emt 0:03:18]} 24. Nxc5 {[%emt 0:00:45]} Qb6 $2 {[%emt 0:00:27][%mdl 8192]} (24... Rb8 $16 25. Ne4 Qxf2+ 26. Kxf2 Bd7) 25. Rd6 $2 {[%emt 0:00:21]} (25. Na4 $18 {is the precise move to win.} Qxf2+ 26. Kxf2) 25... Qc7 {[%emt 0:00:25]} 26. Qd4 {[%emt 0:02:13] Threatens to win with Rd8.} Rb8 {[%emt 0:00:49]} 27. Qc3 {[%emt 0:04:23] White is much more active. The black rooks are badly placed.} b6 {[%emt 0:05:35]} 28. Na4 {[%emt 0:00:41]} Qxc3 {[%emt 0:00:31]} (28... Qa7 $16) 29. bxc3 $18 {[%emt 0:01:10]} (29. Nxc3 $6 Bd7 $16) 29... b5 {[%emt 0:01:06]} (29... f6 {keeps fighting.} 30. Nxb6 (30. Rxb6 Nd7 $16) 30... fxe5) 30. Nc5 {[%emt 0:00:07]} f6 {[%emt 0:01:36]} 31. Rd8 {[%emt 0:00:42]} Kf7 {[%emt 0:00:24]} 32. Na6 {[%emt 0:00:39]} (32. Bc6 $1 $18) 32... Rb6 $16 {[%emt 0:00:18]} 33. Nc5 {[%emt 0:00:30]} (33. Rxc8 $16 Rxa6 34. exf6) 33... Rb8 $1 $18 {[%emt 0:00:28]} 34. Na6 {[%emt 0:00:30]} (34. Bc6 $1 $18) 34... Rb6 $16 {[%emt 0:00:00]} 35. Rxc8 {[%emt 0:00:31]} (35. Nc5 Rb8 $18) 35... Rxa6 {[%emt 0:00:01][%mdl 4096] Endgame KRB-KRN} 36. Rc7+ {[%emt 0:00:29]} Kg6 {[%emt 0:01:57]} 37. exf6 {[%emt 0:00:31]} Kxf6 {[%emt 0:00:27]} 38. Rb7 {[%emt 0:00:26] Repels Rb6} (38. Bc6 $142 $1 {[%cal Rc6e8] Black must now prevent Be8.} Ng6 39. Bxb5 (39. Be8 Nh8 $16)) 38... Ng6 {[%emt 0:02:14]} (38... b4 $142) 39. Rxb5 {[%emt 0:00:11]} e5 {[%emt 0:00:13]} 40. fxe5+ {[%emt 0:00:00]} Nxe5 {[%emt 0:00:00]} 41. Bd5 {[%emt 0:03:51]} Nd7 {[%emt 0:05:57]} 42. Kf2 {[%emt 0:01:59]} Ke7 {[%emt 0:01:19]} 43. Ke3 {[%emt 0:02:05]} Kd6 {[%emt 0:01:57]} (43... Rh6 $16 {was worth a try.} 44. h4 (44. Rxa5 Rxh2 45. c4 Rh3 $16) 44... Rg6) 44. Kd4 {[%emt 0:01:13]} (44. c4 $18) 44... Nf6 {[%emt 0:01:17]} (44... Rb6 $16 {might work better.} 45. Rxa5 Rb2) 45. c4 {[%emt 0:02:32][%cal Bc3c4,Bc4c5,Bc5c6][%mdl 32]} Ne8 $2 {[%emt 0:04:15]} (45... Nxd5 {is tougher.} 46. cxd5 (46. Rxd5+ Kc6 $18) 46... a4) 46. Rb8 {[%emt 0:03:10]} Kd7 {[%emt 0:00:44]} (46... Ke7 47. Rb7+ Kd8) 47. c5 $18 {[%emt 0:01:26]} Rh6 {[%emt 0:02:52]} 48. c6+ {[%emt 0:03:10]} Ke7 {[%emt 0:00:03]} 49. Rb7+ {[%emt 0:02:13]} Kd8 {[%emt 0:00:12]} 50. Rd7+ {[%emt 0:06:53]} Kc8 {[%emt 0:00:02]} 51. Kc5 $2 {[%emt 0:01:33]} (51. h4 $18 {is more deadly.}) 51... Nf6 $16 {[%emt 0:02:26]} 52. Rxg7 {[%emt 0:04:44] Threatening mate with Be6+.} Rh5 {[%emt 0:00:13] [#]} 53. Rf7 $1 {[%emt 0:01:26]} Rxd5+ {[%emt 0:09:46] KRN-KR} 54. Kb6 {[%emt 0:00:01]} Ne8 {[%emt 0:01:33] [#]} 55. Rxh7 {[%emt 0:02:05]} (55. Ra7 $1 $16 {[%cal Ra7a8]} Kd8 56. Ra8+ (56. Rxa5 Rxa5 57. Kxa5 Kc7 $11) (56. Rxh7 Rf5 $16) 56... Ke7 57. c7 (57. Rxa5 Rxa5 58. Kxa5 Kd8 $11) 57... Rd6+ 58. Kb7 (58. Kxa5 Nxc7 59. Rh8 Rh6 $17) 58... Nxc7 59. Kxc7) 55... Rd3 $11 {[%emt 0:02:10]} 56. Rh8 {[%emt 0:00:30]} Re3 {[%emt 0:00:47]} (56... Rb3+ $1 $11 57. Kc5 (57. Kxa5 Rxa3+ 58. Kb6 Rb3+ 59. Kc5 Re3 $11) 57... Re3) 57. a4 $16 {[%emt 0:00:27] aiming for h4.} ({But not} 57. Kxa5 Kc7 $11) 57... Kd8 {[%emt 0:00:14] [#]} 58. g4 {[%emt 0:00:32]} ({Much weaker is} 58. Kxa5 $6 Kc7 $11) ({Better is} 58. h4 $1 $16) 58... Ke7 {[%emt 0:01:03]} 59. Kxa5 {[%emt 0:00:33]} (59. h4 $14) 59... Kd6 $11 {[%emt 0:01:12]} 60. Rh6+ {[%emt 0:00:22]} Kc5 {[%emt 0:00:11]} 61. Ka6 {[%emt 0:00:38]} Rb3 {[%emt 0:00:26]} 62. g5 {[%emt 0:00:30]} Nd6 {[%emt 0:02:23]} 63. c7 {[%emt 0:00:31][%cal Oh6d6]} Rb6+ {[%emt 0:01:14]} 64. Ka7 {[%emt 0:00:05][%cal Oh6d6] Intending Rxd6! and mate.} Rb7+ {[%emt 0:00:06]} 65. Ka8 $132 {[%emt 0:00:52][%mdl 2048] White is not holding back} Rxc7 {[%emt 0:00:06]} 66. Rf6 {[%emt 0:00:33]} Ne4 {[%emt 0:00:27]} 67. Re6 {[%emt 0:00:30]} (67. Rh6 $11) 67... Nxg5 $15 {[%emt 0:00:30] Black is slightly better.} 68. Re5+ {[%emt 0:00:06]} Kb6 {[%emt 0:00:01][%cal Rc7c8]} 69. a5+ {[%emt 0:00:51]} (69. Rxg5 $2 Rc8#) 69... Ka6 {[%emt 0:00:01][%cal Rc7c8]} 70. Kb8 {[%emt 0:00:20] Wards off Rc8+} Rg7 {[%emt 0:00:10]} 71. Kc8 {[%emt 0:00:38] Blacks defense is rewarded with a draw.   Weighted Error Value: White=0.52/Black=0.42} 1/2-1/2

[Event "Polish Youth B18 Championship 2023"]
[Site "Jastrzebia Gora"]
[Date "2023.03.16"]
[Round "6.10"]
[White "Stachecki, Mikolaj"]
[Black "Backiel, Hubert"]
[Result "0-1"]
[ECO "B23"]
[WhiteElo "2015"]
[BlackElo "2127"]
[Annotator "TA"]
[PlyCount "74"]
[EventDate "2023.03.11"]
[EventType "swiss"]
[EventCountry "POL"]
[SourceTitle "playchess.com"]
[Source "ChessBase"]
[SourceQuality "1"]
[TimeControl "40/5400+30:1800+30"]

{[%evp 10,74,0,0,0,0,11,0,0,19,12,12,12,0,12,4,6,10,15,-58,-71,-50,-45,-40,-3,-20,95,-13,-13,-13,-5,-5,0,0,0,0,18,-14,-2,0,-3,-3,-10,-20,-20,-51,-50,-99,-94,-118,-112,-243,-106,-233,-221,-340,-312,-1024,-993,-29990,-29991,-29992,-29993,-29993,-891,-29997,-29998]} 1. e4 {[%emt 0:00:02]} c5 {[%emt 0:02:03]} 2. Nc3 {[%emt 0:00:09]} a6 {[%emt 0:00:51]} 3. a4 {[%emt 0:03:41]} e6 {[%emt 0:01:03]} 4. Nf3 {[%emt 0:00:56]} Nc6 {[%emt 0:01:52]} 5. d4 {[%emt 0:00:59]} cxd4 {[%emt 0:02:15]} 6. Nxd4 {[%emt 0:00:08]} Nf6 {[%emt 0:01:36] B40: Sicilian: 2...e6, Unusual lines.} 7. Be2 {[%emt 0:09:50]} Bb4 {[%emt 0:01:37]} 8. O-O {[%emt 0:00:59]} O-O {[%emt 0:02:37] [#] The position is equal.} 9. Nxc6 $146 {[%emt 0:00:50]} ({Predecessor:} 9. Bg5 h6 10. Bh4 g5 11. e5 Nxe5 12. Bg3 Ng6 13. Bd3 d6 14. Qe2 Re8 15. h4 gxh4 16. Bxg6 hxg3 {0-1 Pericka,T (1913)-Hrabusa,M (2251) Pobeskydy Chance 18th 2007 (1)}) 9... bxc6 {[%emt 0:15:04]} 10. e5 {[%emt 0:00:31]} Nd5 {[%emt 0:00:09]} 11. Ne4 {[%emt 0:00:53]} Qc7 {[%emt 0:03:07]} 12. f4 {[%emt 0:09:43]} f5 $1 {[%emt 0:05:43]} 13. exf6 {[%emt 0:03:40]} Nxf6 {[%emt 0:00:51]} 14. Bd3 {[%emt 0:14:39]} (14. Nxf6+ $11 Rxf6 15. Be3) 14... Nxe4 $15 {[%emt 0:07:13]} 15. Bxe4 {[%emt 0:00:12] Qh5 is the strong threat.} d5 $1 {[%emt 0:00:12]} 16. Bd3 {[%emt 0:00:12]} Bd6 {[%emt 0:07:00]} 17. Qe2 {[%emt 0:11:00]} Bd7 {[%emt 0:06:09] [#]} (17... Bxf4 $2 18. Bxf4 (18. Qh5 g6 $15) 18... Rxf4 19. Qh5 $18) (17... g6 $11 {remains equal.}) 18. Kh1 {[%emt 0:04:25]} ({Only move:} 18. Qh5 $1 $16 Rf5 19. Qh3 (19. Bxf5 exf5 20. Re1 Qb6+ 21. Kf1 Qc5 $16)) 18... e5 $11 {[%emt 0:09:32]} 19. fxe5 {[%emt 0:03:04]} Rxf1+ {[%emt 0:02:24]} 20. Qxf1 {[%emt 0:00:04]} Rf8 {[%emt 0:02:53]} 21. Qe2 {[%emt 0:01:00]} ({Not} 21. Bxh7+ $2 Kxh7 22. Qxa6 (22. Qd3+ $2 Bf5 $19 {[%mdl 64] Skewer}) 22... Bxe5 $19) 21... Bxe5 {[%emt 0:00:09]} 22. c3 {[%emt 0:10:12]} Re8 {[%emt 0:10:35][%cal Oe5c3]} (22... Bxh2 $2 23. Qh5 $18) 23. Bd2 {[%emt 0:08:25]} ({Much weaker is} 23. Qh5 g6 24. Qf3 Bxh2 $17) 23... g6 {[%emt 0:01:47][%cal Oe5c3]} (23... Bxh2 $2 24. Qh5 g6 25. Qxh2 $18) 24. Qf2 {[%emt 0:01:55]} Bxh2 {[%emt 0:06:20] aiming for ...Bg3.} 25. Rf1 {[%emt 0:01:33] Intending Qf7+ and mate.} Bc8 {[%emt 0:00:53]} 26. Bh6 {[%emt 0:00:49][%cal Of2f8] Threatening mate with Qf8+!} Bd6 {[%emt 0:00:06] Repels Qf8+} 27. Qf6 {[%emt 0:01:42][%cal Od3g6] Threatens to win with Bxg6!} Qe7 {[%emt 0:00:20]} 28. Qf2 {[%emt 0:03:27]} (28. Qxe7 $15 Bxe7 29. b4) 28... a5 $17 {[%emt 0:04:11]} 29. b3 {[%emt 0:01:25]} Bd7 $40 {[%emt 0:00:41][%cal Bc8d7,Bd7h3,Bh3g4,Bg4f3,Bf3g2][%mdl 160] Black is out for blood.} 30. Bc2 {[%emt 0:00:57] [#]} (30. Bf4 $17 {was worth a try.}) 30... Kh8 {[%emt 0:01:40]} (30... Qe5 $1 $19 {[%csl Gd6][%cal Re5h2] is more deadly.} 31. g3 Qe7) 31. g3 {[%emt 0:02:03]} (31. Bd2 $17) 31... Bh3 $19 {[%emt 0:00:22]} 32. Rd1 {[%emt 0:01:15]} (32. Rb1 $142) 32... Bc5 {[%emt 0:00:44]} 33. Qf3 {[%emt 0:02:11]} (33. Qf4) 33... Qe6 {[%emt 0:00:31] ( -> ...Bg4)} 34. Rb1 {[%emt 0:02:23]} Bg4 {[%emt 0:00:27]} 35. Qf1 {[%emt 0:00:33] [#]} Bf3+ $1 {[%emt 0:00:30][%mdl 576] Deflection} 36. Kh2 {[%emt 0:00:42]} Qe2+ {[%emt 0:00:11]} (36... Qg4 $142 37. Qxf3 {[%mdl 64] Remove Defender} Qxf3 38. Bg5 Re2+ 39. Kh3 h5 40. Bf6+ Kg8 41. Bf5 Qxf5+ 42. Kh4 Rh2#) 37. Kh3 {[%emt 0:01:22] White is weak on the light squares} Bg2+ {[%emt 0:00:18] A cool game by Backiel.   Weighted Error Value: White=0.68/Black=0.26 (precise)} 0-1